Cogmind - Beta 13 @@@ ROGUE MODE // 2024.04.07 @ 20:38:21 Player: bruderalex Result: Self-destructed Performance ------------- Evolutions (1) 500 Regions Visited (3) 600 Robots Destroyed (22) 110 Value Destroyed (592) 592 Prototype IDs (0) 0 Alien Tech Used (0) 0 Bonus (0) 0 TOTAL SCORE: 1802 Bonus ------- None Cogmind --------- Core Integrity 148/400 Matter 300/300 Energy 240/240 System Corruption 3% Temperature Cool (0) Movement Walking (190) Ox1 Location -9/Mines Parts ------- > --- POWER (1) -------- Nuclear Core > --- PROPULSION (3) --- Aluminum Leg > --- UTILITY (3) ------ Small Storage Unit Advanced Visual Processing Unit > --- WEAPON (2) ------- Axe > --- INVENTORY (8) ---- Ion Engine Ion Engine Light Treads Aluminum Leg Peak State ------------ > --- POWER ------------ Nuclear Core > --- PROPULSION ------- Light Treads Light Treads Aluminum Leg > --- UTILITY ---------- Small Storage Unit Advanced Visual Processing Unit Advanced Visual Processing Unit > --- WEAPON ----------- Axe Axe > --- INVENTORY -------- Ion Engine Ion Engine Advanced Visual Processing Unit [Rating: 19] Favorites ----------- Power Nuclear Core Engine Light Ion Engine Power Core Nuclear Core Propulsion Light Treads Treads Light Treads Leg Aluminum Leg Wheel Compact Wheel Flight Unit Flight Unit Utility Advanced Visual Processing Unit Device Reaction Control System Storage Small Storage Unit Processor Advanced Visual Processing Unit Weapon Axe Energy Gun Medium Laser Ballistic Gun Light Assault Rifle Slashing Weapon Axe Build | -11 -10 -9 -9 ------- Run | Yrd Mat Mat Min Slots Evolved 2 | . . 2 . Power . | . . . . Propulsion 1 | . . 1 . Utility 1 | . . 1 . Weapon . | . . . . Parts Attached 27 | 6 1 18 2 Power 4 | 1 . 2 1 Engine 2 | 1 . 1 . Core 2 | . . 1 1 Reactor . | . . . . Propulsion 12 | 2 . 9 1 Treads 3 | 2 . 1 . Leg 5 | . . 4 1 Wheel 1 | . . 1 . Hover . | . . . . Flight 3 | . . 3 . Utility 5 | 1 . 4 . Device 1 | . . 1 . Storage 1 | 1 . . . Processor 3 | . . 3 . Hackware . | . . . . Protection . | . . . . Artifact . | . . . . Weapon 6 | 2 1 3 . Energy Gun 1 | 1 . . . Energy Cannon . | . . . . Ballistic Gun 3 | 1 1 1 . Ballistic Cannon . | . . . . Launcher . | . . . . Special Weapon . | . . . . Impact Weapon . | . . . . Slashing Weapon 2 | . . 2 . Piercing Weapon . | . . . . Special Melee Weapon . | . . . . Unidentified Prototypes . | . . . . Parts Lost 9 | . . 4 5 Power 1 | . . . 1 Propulsion 5 | . . 3 2 Utility 2 | . . 1 1 Weapon 1 | . . . 1 Highest Loss Streak 5 | . . 3 5 To Critical Strikes . | . . . . Average Slot Usage (%) 94 | . 85 97 94 Engine 6 | . 14 4 . Core 5 | . . 6 11 Treads 15 | . 28 14 . Leg 7 | . . 5 31 Wheel 1 | . . 3 . Flight 5 | . . 8 . Storage 11 | . 14 11 11 Processor 15 | . . 20 18 Energy Gun 6 | . 14 4 . Ballistic Gun 6 | . 14 4 . Slashing Weapon 10 | . . 11 20 Naked Turns . | . . . . Heaviest Build 19 | 12 12 19 18 Greatest Support 40 | 40 40 40 30 Greatest Overweight (x) 6 | . . 6 1 Average Overweight (x) . | . . . . Largest Inventory Capacity 8 | 8 8 8 8 Average Capacity 7 | 7 8 8 8 Most Carried 8 | 4 8 8 5 Average Carried 5 | 1 5 5 4 Final Capacity 8 | 8 8 8 8 Final Carried 7 | 4 7 4 4 Class Distribution -------------------- 100% | Mutant Dominant Class ---------------- Mutant | -10/Materials Mutant | -9/Materials Mutant | -9/Mines Resources | -11 -10 -9 -9 ----------- Run | Yrd Mat Mat Min Matter Collected 514 | 63 92 344 15 Remotely . | . . . . Salvage Created 806 | . 139 521 146 Parts 51 | . 11 36 4 Haulers Intercepted . | . . . . Recyclers Shooed . | . . . . Parts Field Recycled . | . . . . Retrieved Matter . | . . . . Parts Self-Destructed . | . . . . Prevented . | . . . . Kills | -11 -10 -9 -9 ------- Run | Yrd Mat Mat Min Combat Hostiles Destroyed 23 | . 5 12 6 Melee 13 | . . 7 6 Guns 10 | . 5 5 . Classes Destroyed 7 | . 2 3 2 Worker 2 | . . 2 . Watcher 1 | . . 1 . Swarmer 5 | . 3 2 . Grunt 11 | . 2 8 1 Duelist 1 | . . . 1 Sentry 2 | . . 2 . Assembled 4 | . . . 4 Best Kill Streak 6 | . 3 6 4 Combat Bots Only 4 | . 3 3 4 Max Kills in Single Turn 1 | . 1 1 1 Gunslinging . | . . . . Exploded . | . . . . Melee 1 | . . 1 1 Uniques/NPCs Destroyed . | . . . . Combat | -11 -10 -9 -9 -------- Run | Yrd Mat Mat Min Hostile Shots Fired 134 | . 31 74 29 Missed 30 | . 6 18 6 Damage Taken 1439 | . 243 556 640 Core 280 | . 28 121 131 Absorbed by Shields . | . . . . Core Remaining (%) 94 | 100 88 . . Volleys Fired 33 | . 17 16 . Largest 2 | . 2 2 . Hottest 73 | . 70 73 . Shots Fired 66 | . 34 32 . Gun 66 | . 34 32 . Cannon . | . . . . Launcher . | . . . . Special . | . . . . Kinetic 33 | . 17 16 . Thermal 33 | . 17 16 . Explosive . | . . . . Electromagnetic . | . . . . Robot Hit Streak 8 | . 6 8 . Robot Miss Streak 3 | . 3 2 . Penetration Max . | . . . . Secondary Targets . | . . . . Shots Hit Robots 69 | . 20 36 13 Core Hits 32 | . 7 18 7 Critical Kills . | . . . . Critical Parts Destroyed . | . . . . Critical Strikes 2 | . . 2 . Burn 1 | . . 1 . Sever 1 | . . 1 . Melee Attacks 37 | . . 20 17 Impact . | . . . . Slashing 37 | . . 20 17 Piercing . | . . . . Sneak Attacks 4 | . . 4 . Combat Hostiles . | . . . . Follow-up Attacks 5 | . . 2 3 Damage Inflicted 1606 | . 250 886 470 Guns 516 | . 250 266 . Cannons . | . . . . Explosions . | . . . . Melee 1090 | . . 620 470 Ramming . | . . . . Kinetic 250 | . 112 138 . Thermal 266 | . 138 128 . Explosive . | . . . . Electromagnetic . | . . . . Impact . | . . . . Slashing 1090 | . . 620 470 Piercing . | . . . . Highest Corruption 3 | . . . 3 Average Corruption 2 | . . . 2 Corruption Purged . | . . . . Corruption Blocked . | . . . . Effects 1 | . . . 1 Energy Discharges 1 | . . . 1 Overload Shots . | . . . . Overflow Damage 123 | . . 103 20 Projectiles . | . . . . Explosions . | . . . . Melee 123 | . . 103 20 Knockbacks . | . . . . Impact . | . . . . Kinetic . | . . . . Secondary . | . . . . Self-Inflicted Damage . | . . . . Shots . | . . . . Rammed . | . . . . Targets Rammed . | . . . . Kicked . | . . . . Crushed . | . . . . Highest Temperature 177 | . 177 102 1 Average Temperature 62 | . 76 47 1 Received Heat Transfer 336 | . 78 198 60 Siege Activations . | . . . . Robots Corrupted . | . . . . Combat Hostiles . | . . . . Parts Fried . | . . . . Impact Corruptions . | . . . . Robots Melted . | . . . . Combat Hostiles . | . . . . Parts Melted 1 | . . 1 . Heat Transferred 851 | . 407 444 . Parts Sabotaged . | . . . . Parts Stolen . | . . . . Parts Stripped . | . . . . Power Chain Reactions . | . . . . Alert | -11 -10 -9 -9 ------- Run | Yrd Mat Mat Min Peak Influence 220 | . 110 220 91 Initial 46 | . . 46 41 Average 67 | . 37 82 73 Maximum Alert Level 1 | . . 1 . Low Security (%) 98 | 100 100 97 100 Level 1 1 | . . 2 . Level 2 . | . . . . Level 3 . | . . . . Level 4 . | . . . . Level 5 . | . . . . High Security . | . . . . Max Security . | . . . . Squads Dispatched 1 | . . 1 . Investigation . | . . . . Extermination . | . . . . Reinforcement 1 | . . 1 . Assault . | . . . . Garrison . | . . . . Intercept . | . . . . Searches Triggered . | . . . . Construction Impeded . | . . . . Haulers Reinforced . | . . . . Active Scanning Responses . | . . . . Cargo Convoy Interrupts . | . . . . Stealth | -11 -10 -9 -9 --------- Run | Yrd Mat Mat Min Distress Signals 2 | . . 2 . Communications Jammed . | . . . . Distress Signals . | . . . . Times Spotted 49 | . 5 18 26 Peak Tracking Total 20 | . 3 4 20 Tactical Retreats 3 | . . 1 2 Traps | -11 -10 -9 -9 ------- Run | Yrd Mat Mat Min Traps Triggered . | . . . . Indirectly . | . . . . Trap Hack Attempts . | . . . . Triggered . | . . . . Disarmed . | . . . . Reprogrammed . | . . . . Reused . | . . . . Traps Extracted . | . . . . Installed . | . . . . Triggered . | . . . . Machines | -11 -10 -9 -9 ---------- Run | Yrd Mat Mat Min Machines Disabled . | . . . . Max in Single Turn . | . . . . Machines Repaired . | . . . . Machines Dismantled . | . . . . Machines Sabotaged . | . . . . Overloaded Fab Kills . | . . . . Hacking | -11 -10 -9 -9 --------- Run | Yrd Mat Mat Min Machines Accessed 1 | . 1 . . Terminals 1 | . 1 . . Fabricators . | . . . . Repair Stations . | . . . . Recycling Units . | . . . . Scanalyzers . | . . . . Garrison Access . | . . . . Total Hacks 2 | . 2 . . Successful . | . . . . Failed 2 | . 2 . . Catastrophic . | . . . . Database Lockouts . | . . . . Manual . | . . . . Terminals 2 | . 2 . . Fabricators . | . . . . Repair Stations . | . . . . Recycling Units . | . . . . Scanalyzers . | . . . . Garrison Access . | . . . . Terminal Hacks . | . . . . Fabricator Hacks . | . . . . Repair Station Hacks . | . . . . Recycling Unit Hacks . | . . . . Scanalyzer . | . . . . Garrison Access Hacks . | . . . . Unauthorized Hacks . | . . . . Terminals . | . . . . Fabricators . | . . . . Repair Stations . | . . . . Recycling Units . | . . . . Scanalyzers . | . . . . Garrison Access . | . . . . Data Cores Recovered . | . . . . Used . | . . . . Hacking Detections . | . . . . Full Trace Events . | . . . . Feedback Events . | . . . . Feedback Blocked . | . . . . Robot Schematics Acquired . | . . . . Robots Built . | . . . . Authchips . | . . . . Time . | . . . . Total Robot Build Rating . | . . . . Part Schematics Acquired . | . . . . Parts Built . | . . . . Authchips . | . . . . Time . | . . . . Total Part Build Rating . | . . . . Parts Repaired . | . . . . Time . | . . . . Parts Recycled . | . . . . Recycled Matter . | . . . . Retrieved Matter . | . . . . Retrieved Components . | . . . . Parts Scanalyzed . | . . . . Part Schematics Acquired . | . . . . Parts Damaged . | . . . . Bothacking | -11 -10 -9 -9 ------------ Run | Yrd Mat Mat Min Used RIF Installer . | . . . . Robots Hacked . | . . . . Non-combat . | . . . . Combat . | . . . . Robot Hacks Applied . | . . . . Relay Couplers Released . | . . . . Fabnet Peak Effective % . | . . . . Robots Rewired . | . . . . Allies Hacked . | . . . . Hacks Repelled . | . . . . Allies | -11 -10 -9 -9 -------- Run | Yrd Mat Mat Min Total Allies . | . . . . Largest Group . | . . . . Highest-Rated Group . | . . . . Highest-Rated Ally . | . . . . Total Orders . | . . . . Ally Attacks . | . . . . Total Damage . | . . . . Kills . | . . . . Allies Corrupted . | . . . . Allies Melted . | . . . . Intel | -11 -10 -9 -9 ------- Run | Yrd Mat Mat Min Robot Analysis Total . | . . . . Derelict Logs Recovered . | . . . . Drone Launches . | . . . . Drone Recoveries . | . . . . Exploration | -11 -10 -9 -9 ------------- Run | Yrd Mat Mat Min Turns Passed 1420 | 80 307 854 179 Spaces Moved 616 | 46 149 316 105 Core 11 | 5 . 6 . Treads 411 | 41 149 221 . Legs 170 | . . 65 105 Wheels . | . . . . Hover . | . . . . Flight 24 | . . 24 . Fastest Speed 50 | 50 160 114 120 Average Speed 151 | 148 160 157 122 Slowest Speed 380 | 160 160 380 190 Overloaded Moves . | . . . . Propulsion Burnouts . | . . . . Robots Hopped . | . . . . Cave-ins Triggered . | . . . . Exploration Rate (%) 23 | 5 26 34 30 Regions Visited 3 Branch Regions 1 Pre-discovered Areas . | . . . . Known Exits Taken . | . . . . Unknown Exits Taken 3 | 1 1 1 . Scrap Searched . | . . . . Spaces Dug . | . . . . Terrain Destroyed . | . . . . Melee . | . . . . Projectile . | . . . . AOE . | . . . . Terrain Rammed . | . . . . Walls Destroyed . | . . . . Machines Disabled . | . . . . Actions | -11 -10 -9 -9 --------- Run | Yrd Mat Mat Min Total 984 | 55 185 613 131 Wait 244 | . 14 221 9 Move 613 | 45 148 315 105 Hop . | . . . . Pick Up 14 | 4 4 5 1 Fast Attach 21 | 6 . 15 . Attach 4 | . 1 2 1 Detach 5 | . . 5 . Swap 2 | . . 1 1 Drop 18 | . 1 16 1 Fire 33 | . 17 16 . Melee 30 | . . 17 13 Ram . | . . . . Kick . | . . . . Crush . | . . . . Escape Stasis . | . . . . Rewire . | . . . . Trap . | . . . . Miscellaneous . | . . . . Route ------- -11/Scrapyard -10/Materials -9/Materials -9/Mines History --------- Turn | Location | Event 54 | -11/Scrapyard | Discovered new exit (range 16) 81 | -11/Scrapyard | Entered Materials 308 | -10/Materials | Build established: Mutant 378 | -10/Materials | Discovered new exit (range 3) 388 | -10/Materials | Entered another Materials area 388 | -9/Materials | Evolved 2 slots: Propulsion x1, Utility x1 879 | -9/Materials | Lost 3 parts (2n1u) 1203 | -9/Materials | Discovered new exit (range 7) 1242 | -9/Materials | Entered Mines 1352 | -9/Mines | Assembled infested the area 1357 | -9/Mines | Assisted by a Guerilla fighting off Assembled 1395 | -9/Mines | Core integrity fell below 50% 1421 | -9/Mines | Self-destructed Last Messages --------------- 01405_ Axe destroyed. 01405_ as-09212 destroyed. 01408_ Acquired 5 matter. 01408_ as-26029 destroyed. 01408_ as-75850 destroyed. 01409_ as-82783 destroyed. 01410_ as-60956 destroyed. 01410_ as-20066 destroyed. 01411_ The unstable cave ceiling collapses. 01412_ as-09689 destroyed. 01413_ The unstable cave ceiling collapses. 01413_ Aluminum Leg destroyed. 01414_ as-99369 destroyed. 01415_ System corrupted: Energy discharge (-61). 01415_ The unstable cave ceiling collapses. 01415_ Aluminum Leg destroyed. 01415_ as-28182 destroyed. 01416_ The unstable cave ceiling collapses. 01418_ D-53 Grenadier destroyed. 01420_ The unstable cave ceiling collapses. Map ----- +----------------------------------------------------+ | ????????#$ #### #??????????????????????????? | | ????????# ## ###????????????????????????? | | ????????# % ?????????????????????????? | | ???????## ??????????????????????????? | | ??????## % ####????????????????????????? | | ?????## ## * ##??????????????????????? | | ????## #?#% ###???????????????????? | | ?# ## ### ##??????????????????? | | ?# """ #??????????????????? | | ?#### """ % #??????????????????? | | ????## """ #??????????????????? | | ?????## ### ##?????????????????? | | ??????#### ##?## #?????????????????? | | ?????????## ###???# ## # #?????? ???????? | | ??????????## #????## ## * #### #????? | | ???????????# ###### =d! %" """"????????? | | ???????????# # #### """"????????? | | ???????????###### % ##???????""????????? | | ????????######### # ##??????????????????? | | ????????# #??????????????????? | | ????????# # #???????????????????? | | ????????# ###### #????????????????????? | | ????????# #?????# #????????????????????? | | ????????# ###???# #########????????????? | | ????????# ##??# # #????????????? | | ????????# ###### @ """ #????????????? | | ???????## *%=#?# % """ #????????????? | | ??????## ##!#?#######! """ #????????????? | | ????### ####%#????????? #????????????? | | ???## ##### #?????????? #????????????? | | ???# ## #???????????######????????????? | | ???# ## ### #####?????????????????????????????? | | ???#######?# #?????????????????????????????????? | | ???????????# #?????????????????????????????????? | | ???????????# #?????????????????????????????????? | | ???????????# #?????????????????????????????????? | | ?????????### #?????????????????????????????????? | | ?????????# #?????????????????????????????????? | | ?????????# ###?????????????????????????????????? | | ????????## ##??????????????????????????????????? | | ???????## #### #?????????????????????????????? | | ????#### #?????????????????????????????? | | ??### #### #?????????????????????????????? | | ?## """ #####???????????????????????????????? | | ?# """ #?????????????????????????????? | | ?# """ #######?????????????????????????????? | | ?## #??????????????????????????????????? | | ??###### #??????????????????????????????????? | | ???????## ##??????????????????????????????????? | | ????????####???????????????????????????????????? | +----------------------------------------------------+ Best States ------------- Heat Dissipation 28 Energy Generation 14 Energy Capacity 250 Matter Stores 300 Matter Capacity 300 Sight Range 20 Terrain Scan Density 10 Evasion (%) 55 Recoil Reduction 2 Item Schematics ----------------- None Robot Schematics ------------------ None Fabricated ------------ Nothing Alien Tech Used ----------------- None Achievements -------------- Hunted Challenges ------------ None Game ------ Seed WeightThermalBoregun Manual? 0 Play Time 00:13:06 Cumulative 8.4 hours Start 2024.04.07 @ 20:27:28 End 2024.04.07 @ 20:38:21 Sessions 1 Manual Loads 0 Difficulty Rogue Special Mode None Game No. 19 Rogue 13 Adventurer 6 Explorer 0 Win Type - Total 0 Types 0/0/0/0/0/0/0/0/0 Lore% 14 Gallery% 16 Achievement% 16 Wizard Run 0 Options --------- Layout 0 ASCII 0 Keyboard 1 Movement Numpad Keybinds 0 Fullscreen 1 Font 18/SmallcapsGlow Map View 76x50 Zoom Use 0% Tactical HUD 1 Map Filters NONE Filters NONE Steam 1 RUN: 87cb01d8-af16-4108-9d55-b0d4489d82e0